bitfinex/quotes_SOLUSD_20251207
["timestamp","ask_amount","ask_price","bid_price","bid_amount"]
[1765135696037,15.52661545,135.38,135.35,0.66]
[1765135697139,7.38597881,135.4,135.36,8.80994492]
[1765135697534,7.38597881,135.4,135.37,0.66]
[1765135698435,7.38497895,135.41,135.37,0.66]
[1765135698639,15.52497895,135.41,135.37,0.66]
[1765135700534,15.52497895,135.41,135.37,8.04701421]
[1765135701354,15.52497895,135.41,135.38,0.65]
[1765135704448,7.38447998,135.42,135.38,24.34543265]
[1765135704749,8.14,135.44,135.38,24.34543265]
[1765135704958,8.14,135.44,135.39,0.65]
[1765135705327,8.83,135.44,135.39,0.65]
[1765135705944,16.2136214,135.44,135.4,7.38552437]
[1765135706237,16.2136214,135.44,135.41,0.65]
[1765135706752,15.52282652,135.45,135.41,0.65]
[1765135707664,15.52282652,135.45,135.41,24.34380261]
[1765135708147,15.52282652,135.45,135.42,0.65]
[1765135708981,16.21282652,135.45,135.42,0.65]
[1765135709267,16.21282652,135.45,135.4,16.308864]
[1765135709268,0.69,135.44,135.4,16.308864]
[1765135709448,0.69,135.44,135.4,16.958864]
[1765135709848,7.38388835,135.43,135.4,16.958864]
[1765135710351,8.07388835,135.43,135.4,16.958864]
[1765135710774,0.69,135.42,135.39,0.65]
[1765135711452,7.38388835,135.43,135.39,8.03604086]
[1765135711658,8.07388835,135.43,135.39,8.03604086]
[1765135711862,8.14,135.42,135.38,23.6953673]
[1765135712162,8.83,135.42,135.39,0.65]
[1765135713065,16.21469061,135.42,135.39,0.65]
[1765135714460,15.52469061,135.42,135.39,0.65]
[1765135716968,7.38469061,135.42,135.39,0.65]
[1765135717168,15.52469061,135.42,135.39,0.65]
[1765135718194,16.21469061,135.42,135.39,0.65]
[1765135718371,16.21469061,135.42,135.38,16.958864]
[1765135718762,16.21469061,135.42,135.39,0.65]
[1765135720260,0.69,135.41,135.37,0.65]
[1765135720479,0.69,135.41,135.38,0.65]
[1765135721487,34.67577464,135.42,135.38,0.65]
[1765135723281,0.69,135.41,135.38,0.65]
[1765135725892,8.07545158,135.41,135.38,0.65]
[1765135730081,7.38545158,135.41,135.38,0.65]
[1765135731476,8.06545158,135.41,135.38,0.65]
[1765135731806,8.06545158,135.41,135.38,0.69]
[1765135735669,15.52557104,135.4,135.38,0.69]
[1765135737403,15.52557104,135.4,135.36,16.998864]
[1765135737404,0.68,135.39,135.36,16.998864]
[1765135737716,8.14,135.38,135.36,0.69]
[1765135738025,8.14,135.38,135.36,16.998864]
[1765135738382,8.82,135.38,135.35,0.69]
[1765135739009,0.68,135.37,135.33,16.998864]
[1765135739414,8.06756576,135.37,135.34,0.69]
[1765135740995,8.14,135.38,135.34,0.69]
[1765135741202,8.85,135.38,135.34,0.69]
[1765135742399,7.38716111,135.37,135.34,0.69]
[1765135750714,15.52683954,135.38,135.34,8.07866662]
[1765135751222,15.52683954,135.38,135.35,0.71]
[1765135752512,16.23683954,135.38,135.35,0.71]
[1765135755307,15.52683954,135.38,135.35,0.71]
[1765135755514,16.23683954,135.38,135.35,0.71]
[1765135758301,15.52683954,135.38,135.35,0.71]
[1765135759328,16.23683954,135.38,135.35,0.71]
[1765135761531,25.85200063,135.39,135.35,0.71]
[1765135761730,8.14,135.38,135.35,0.71]
[1765135764523,7.3871215,135.38,135.35,0.71]
[1765135764729,15.5271215,135.38,135.35,0.71]
[1765135769146,8.14,135.38,135.35,8.09795088]
[1765135769348,112.18572344,135.4,135.36,8.80994492]
[1765135769643,7.38572344,135.4,135.37,0.72]
[1765135777570,15.52505416,135.41,135.37,8.10692573]
[1765135778041,15.52505416,135.41,135.38,0.72]
[1765135779063,7.38466681,135.42,135.38,8.10657901]
[1765135779570,7.38466681,135.42,135.39,0.72]
[1765135786845,15.52388835,135.43,135.39,24.41483173]
[1765135787244,15.52388835,135.43,135.4,0.72]
[1765135787466,7.38301737,135.45,135.41,8.80994492]
[1765135787646,7.5824385,135.46,135.41,8.80994492]
[1765135787850,7.5824385,135.46,135.42,0.72]
[1765135788768,0.2,135.46,135.43,16.19367002]
[1765135789359,0.2,135.46,135.44,0.72]
[1765135792370,7.58227447,135.46,135.44,0.72]
[1765135795256,0.2,135.46,135.44,0.72]
[1765135797991,0.2,135.46,135.44,8.1032232]
[1765135798396,0.2,135.46,135.45,0.68]
[1765135800397,7.58228295,135.46,135.44,0.68]
[1765135801983,8.26228295,135.46,135.42,25.128864]
[1765135802186,0.68,135.45,135.42,16.988864]
[1765135802377,0.68,135.45,135.41,0.68]
[1765135802577,8.82,135.45,135.41,0.68]
[1765135802971,0.68,135.44,135.41,0.68]
[1765135803171,0.68,135.44,135.4,16.988864]
[1765135803372,0.68,135.44,135.39,0.68]
[1765135803792,7.38388835,135.43,135.39,0.68]
[1765135804189,0.68,135.42,135.39,0.68]
[1765135804590,7.38388835,135.43,135.39,0.68]
[1765135804897,8.06388835,135.43,135.39,0.68]
[1765135805278,8.06388835,135.43,135.39,8.06603875]
[1765135805783,8.06388835,135.43,135.4,0.68]
[1765135809409,8.06388835,135.43,135.4,4.28965907]
[1765135810512,8.06388835,135.43,135.4,0.68]
[1765135813312,15.52388835,135.43,135.4,4.28965907]
[1765135814111,16.20388835,135.43,135.4,4.28965907]
[1765135817097,16.20388835,135.43,135.4,0.68]
[1765135819731,8.14,135.43,135.41,3.60965907]
[1765135819932,8.80994492,135.44,135.42,3.60965907]
[1765135820222,0.2,135.46,135.43,3.60965907]
[1765135820423,0.2,135.46,135.43,4.28965907]
[1765135820597,7.38301643,135.45,135.44,0.67]
[1765135822424,7.38301643,135.45,135.43,4.27965907]
[1765135823617,0.2,135.46,135.43,4.27965907]
[1765135823825,0.91,135.46,135.43,4.27965907]
[1765135824019,0.2,135.46,135.44,4.27965907]
[1765135824322,0.2,135.46,135.45,3.60965907]
[1765135824493,0.2,135.46,135.45,4.27965907]
[1765135824694,0.2,135.46,135.45,2.97829361]
[1765135826424,0.2,135.46,135.45,10.36109169]
[1765135827023,0.2,135.46,135.45,2.97829361]
[1765135831136,0.2,135.46,135.45,10.36109169]
[1765135831701,0.2,135.46,135.45,19.17103661]
[1765135831928,0.2,135.46,135.45,28.40421105]
[1765135832228,0.2,135.46,135.45,52.96421105]
[1765135832621,0.2,135.46,135.45,43.73103661]
[1765135833035,0.2,135.46,135.45,52.96421105]
[1765135833209,1e-08,135.46,135.45,52.96421105]
[1765135835904,0.2,135.5,135.49,25.11880892]
[1765135836110,0.2,135.5,135.49,36.21710253]
[1765135836537,0.2,135.5,135.49,39.17142137]
[1765135837210,0.2,135.52,135.49,46.55203986]
[1765135837520,0.2,135.52,135.51,11.11823853]
[1765135837909,0.2,135.52,135.51,11.78823853]
[1765135838722,0.2,135.52,135.51,19.16776771]
[1765135841650,0.2,135.52,135.51,22.12165021]
[1765135844344,0.91,135.52,135.51,10.33341168]
[1765135844555,0.91,135.52,135.47,20.76196213]
[1765135844852,0.71,135.51,135.48,23.68966859]
[1765135845238,0.71,135.51,135.49,7.38052229]
[1765135846354,0.71,135.51,135.48,7.38116327]
[1765135847033,0.2,135.52,135.51,25.11880892]
[1765135847247,0.2,135.52,135.51,35.54710253]
[1765135847435,0.2,135.52,135.51,45.92971919]
[1765135847950,0.2,135.54,135.51,48.88360169]
[1765135848265,0.2,135.54,135.53,18.49667872]
[1765135848455,0.2,135.54,135.53,26.61667872]
[1765135848630,0.2,135.54,135.53,27.28667872]
[1765135849955,0.2,135.57,135.55,8.80994492]
[1765135850144,0.2,135.57,135.55,19.23823853]
[1765135850453,0.2,135.57,135.55,18.61715761]
[1765135850631,0.2,135.57,135.55,21.57060391]
[1765135851233,0.2,135.57,135.55,31.05054883]
[1765135851936,0.2,135.57,135.55,38.42790036]
[1765135855860,0.2,135.57,135.55,35.47445406]
[1765135856044,0.2,135.57,135.55,34.80445406]
[1765135857338,0.88,135.56,135.55,18.61715761]
[1765135857760,0.88,135.56,135.55,16.308864]
[1765135858661,0.88,135.56,135.54,11.11823853]
[1765135858838,0.88,135.56,135.54,18.49610995]
[1765135859163,0.68,135.55,135.53,26.73715761]
[1765135859339,0.68,135.55,135.53,18.61715761]
[1765135859540,0.68,135.55,135.53,16.308864]
[1765135859754,0.68,135.55,135.51,27.42710253]
[1765135860038,8.0575713,135.55,135.51,27.42710253]
[1765135860352,8.0575713,135.55,135.51,34.80659702]
[1765135860545,8.0575713,135.55,135.51,35.50659702]
[1765135860546,0.68,135.54,135.51,35.50659702]
[1765135860936,0.68,135.54,135.51,33.19830341]
[1765135861137,0.2,135.56,135.53,2.30829361]
[1765135861465,0.88,135.56,135.54,2.30829361]
[1765135861841,0.2,135.56,135.54,2.30829361]
[1765135862040,0.2,135.56,135.55,3.00829361]
[1765135862662,0.2,135.56,135.55,11.81823853]
[1765135863665,0.2,135.56,135.55,19.19559006]
[1765135872099,0.2,135.57,135.56,8.80994492]
[1765135872277,0.2,135.58,135.57,11.11823853]
[1765135872476,0.2,135.58,135.57,19.19450171]
[1765135872873,1e-08,135.64,135.59,25.11880892]
[1765135873066,1e-08,135.64,135.63,2.30829361]
[1765135873796,1e-08,135.64,135.63,11.81823853]
[1765135874173,1e-08,135.64,135.63,11.11823853]
[1765135874494,0.68000001,135.64,135.62,26.73715761]
[1765135874877,0.68000001,135.64,135.62,18.61715761]
[1765135875971,0.68000001,135.64,135.63,2.30829361]
[1765135876172,1e-08,135.64,135.63,19.93823853]
[1765135877673,1e-08,135.64,135.63,27.3112386]
[1765135878902,0.2,135.66,135.65,16.308864]
[1765135879104,0.2,135.66,135.65,26.73715761]
[1765135879308,0.88,135.66,135.65,35.54710253]
[1765135879609,0.2,135.66,135.65,35.54710253]
[1765135879801,0.2,135.66,135.65,43.61901554]
[1765135881489,0.2,135.66,135.65,42.91901554]
[1765135881680,0.2,135.66,135.65,43.61901554]
[1765135884685,0.2,135.66,135.65,44.90586641]
[1765135890620,0.2,135.66,135.65,107.10586641]
[1765135890821,0.2,135.66,135.65,110.70101089]
[1765135891617,0.2,135.67,135.66,8.80994492]
[1765135891930,0.2,135.67,135.66,78.90023388]
[1765135892231,0.2,135.67,135.66,101.31739486]
[1765135892726,0.2,135.68,135.66,101.31739486]
[1765135893024,0.2,135.68,135.67,28.59591566]
[1765135893402,1e-08,135.68,135.67,28.59591566]
[1765135894753,1e-08,135.7,135.67,46.32298133]
[1765135895045,0.2,135.71,135.7,25.11880892]
[1765135895251,0.2,135.71,135.7,36.8339534]
[1765135895447,0.92,135.71,135.7,28.7139534]
[1765135895951,0.2,135.71,135.7,28.7139534]
[1765135896334,0.2,135.71,135.7,29.4139534]
[1765135896851,0.2,135.71,135.7,36.78315015]
[1765135897665,0.2,135.72,135.71,8.80994492]
[1765135897953,0.2,135.72,135.71,21.2250894]
[1765135898752,0.72,135.76,135.75,8.80994492]
[1765135898963,0.72,135.76,135.75,12.4050894]
[1765135900136,0.2,135.77,135.75,12.4050894]
[1765135900456,0.2,135.77,135.74,16.308864]
[1765135900457,0.92,135.77,135.76,12.4050894]
[1765135900626,0.92,135.77,135.76,20.47102929]
[1765135900627,0.2,135.77,135.76,20.47102929]
[1765135900827,0.2,135.77,135.76,19.77102929]
[1765135901027,0.92,135.77,135.76,19.77102929]
[1765135901228,0.2,135.77,135.76,19.77102929]
[1765135904059,0.2,135.77,135.76,20.47102929]
[1765135906242,0.2,135.78,135.77,8.80994492]
[1765135906444,0.2,135.78,135.77,21.2250894]
[1765135906961,0.92,135.78,135.77,28.7139534]
[1765135908038,0.92,135.78,135.77,19.90400848]
[1765135909254,0.92,135.78,135.77,16.308864]
[1765135909566,0.2,135.78,135.77,28.7139534]
[1765135909768,0.2,135.78,135.77,20.47048676]
[1765135910068,0.2,135.82,135.8,25.11880892]
[1765135910265,0.2,135.82,135.81,3.59514448]
[1765135910848,0.86,135.82,135.81,3.59514448]
[1765135911048,0.2,135.82,135.81,27.88831743]
[1765135911368,0.86,135.82,135.81,19.76831743]
[1765135912152,0.2,135.82,135.81,19.76831743]
[1765135912945,0.2,135.82,135.81,20.47831743]
[1765135913771,0.2,135.82,135.81,19.76831743]
[1765135914370,0.2,135.82,135.81,20.47831743]
[1765135915575,0.2,135.82,135.81,19.76831743]
[1765135915752,0.86,135.82,135.81,36.07718143]
[1765135915949,0.86,135.82,135.81,19.76831743]
[1765135916150,0.86,135.82,135.81,36.07718143]
[1765135920548,0.86,135.82,135.81,36.72718143]
[1765135920549,0.2,135.82,135.81,36.72718143]
[1765135920756,0.2,135.86,135.85,25.11880892]
[1765135920969,0.2,135.86,135.85,36.8339534]
[1765135921252,0.2,135.86,135.85,37.4839534]
[1765135921581,0.2,135.86,135.85,36.8339534]
[1765135922748,0.2,135.86,135.85,44.19501339]
[1765135922953,0.2,135.86,135.85,44.84501339]
[1765135923753,0.2,135.86,135.85,44.19501339]
[1765135924178,0.2,135.86,135.85,44.84501339]
[1765135924969,0.2,135.86,135.85,54.55763005]
[1765135925277,0.67,135.9,135.85,76.55542451]
[1765135925459,0.67,135.9,135.89,19.90400848]
[1765135926074,12.50061775,135.95,135.9,8.80994492]
[1765135926075,0.67,135.91,135.9,8.80994492]
[1765135926258,0.67,135.91,135.9,12.4050894]
[1765135926958,0.67,135.91,135.9,19.76344112]
[1765135928382,0.67,135.93,135.9,19.76344112]
[1765135928556,0.67,135.93,135.92,3.59514448]
[1765135929658,0.67,135.93,135.91,3.59514448]
[1765135932572,8.02677473,135.93,135.9,12.4050894]
[1765135932883,0.67,135.92,135.89,16.308864]
[1765135933793,7.35781031,135.91,135.88,3.59514448]
[1765135934165,7.35781031,135.91,135.87,3.59514448]
[1765135934391,0.67,135.9,135.86,12.4050894]
[1765135934580,0.67,135.9,135.86,28.7139534]
[1765135935268,0.67,135.9,135.86,36.07442513]
[1765135936389,8.02846523,135.9,135.87,3.59514448]
[1765135936868,0.67,135.91,135.88,3.59514448]
[1765135937072,0.67,135.91,135.89,3.59514448]
[1765135938380,0.67,135.92,135.9,3.59514448]
[1765135938672,0.67,135.92,135.91,3.59514448]
[1765135940376,0.67,135.92,135.9,12.4050894]
[1765135940576,0.67,135.92,135.9,19.76329254]
[1765135942594,0.67,135.92,135.89,3.59514448]
[1765135942809,8.02755299,135.92,135.89,16.308864]
[1765135943180,0.68,135.91,135.89,16.308864]
[1765135944804,0.68,135.91,135.89,19.90400848]
[1765135945204,0.68,135.91,135.89,16.308864]
[1765135945205,8.03787145,135.91,135.89,16.308864]
[1765135945380,7.35787145,135.91,135.89,16.308864]
[1765135945582,0.68,135.9,135.89,16.308864]
[1765135945982,0.68,135.9,135.88,12.4050894]
[1765135946277,0.68,135.9,135.87,3.59514448]
[1765135946689,8.03840883,135.9,135.87,11.10427541]
[1765135947211,0.68,135.89,135.86,17.77463979]
[1765135947590,7.35840883,135.9,135.87,2.29433049]
[1765135947793,7.35802817,135.91,135.88,2.29433049]
[1765135947996,8.03802817,135.91,135.9,16.308864]
[1765135948197,7.35802817,135.91,135.9,16.308864]
[1765135948605,8.03802817,135.91,135.9,16.308864]
[1765135949319,0.68,135.91,135.9,16.308864]
[1765135949517,0.68,135.91,135.89,2.29433049]
[1765135949822,0.68,135.91,135.89,25.96208564]
[1765135950418,0.68,135.93,135.9,9.65266931]
[1765135950744,0.68,135.93,135.91,2.29433049]
[1765135951413,0.68,135.93,135.91,9.65199527]
[1765135953994,0.68,135.93,135.9,9.65249111]
[1765135954521,8.03673701,135.93,135.89,25.96194395]
[1765135954726,8.03673701,135.93,135.89,16.308864]
[1765135954903,0.68,135.92,135.89,16.308864]
[1765135955413,0.68,135.92,135.87,26.56412462]
[1765135955615,0.68,135.92,135.87,9.6541797]
[1765135955815,0.68,135.92,135.88,7.35939001]
[1765135956015,5.14194225,135.92,135.89,2.29433049]
[1765135956400,0.68,135.92,135.89,2.29433049]
[1765135956600,0.68,135.91,135.89,2.29433049]
[1765135956819,0.68,135.92,135.89,2.98433049]
[1765135957324,0.68,135.92,135.89,9.6530059]
[1765135961027,0.68,135.92,135.89,7.35867541]
[1765135961226,8.03747717,135.92,135.87,26.70319449]
[1765135961423,8.03747717,135.92,135.87,25.96300136]
[1765135961638,0.68,135.91,135.87,25.96300136]
[1765135962123,0.68,135.91,135.88,10.34374783]
[1765135962806,4.49144589,135.92,135.88,2.29433049]
[1765135963144,5.18323913,135.92,135.9,2.29433049]
[1765135963312,0.68,135.92,135.89,8.04877166]
[1765135963625,0.68,135.93,135.9,2.98433049]
[1765135964011,0.68,135.93,135.9,10.3425957]
[1765135964206,4.5193206,135.92,135.9,9.6525957]
[1765135964524,0.68,135.93,135.9,9.6525957]
[1765135964702,5.19946257,135.92,135.9,9.6525957]
[1765135964905,0.68,135.92,135.9,9.6525957]
[1765135967231,0.68,135.93,135.9,10.3425957]
[1765135967419,4.52036017,135.92,135.9,10.3425957]
[1765135967619,0.68,135.93,135.9,10.3425957]
[1765135967819,4.52036017,135.92,135.9,9.6525957]
[1765135968128,0.68,135.92,135.9,2.29433049]
[1765135969142,4.50215823,135.91,135.88,2.29433049]
[1765135969308,7.35781031,135.91,135.88,2.29433049]
[1765135969516,0.68,135.9,135.88,2.29433049]
[1765135969834,0.68,135.9,135.86,2.29433049]
[1765135970016,4.46938526,135.89,135.85,17.75520174]
[1765135970333,0.68,135.9,135.86,16.308864]
[1765135970634,5.1491968,135.89,135.86,16.308864]
[1765135970835,0.68,135.89,135.86,16.308864]
[1765135971036,0.68,135.89,135.87,2.29433049]
[1765135972418,0.68,135.92,135.88,3.00433049]
[1765135972621,4.48052528,135.91,135.9,2.29433049]
[1765135972818,8.03623444,135.94,135.9,11.10427541]
[1765135973035,4.51150122,135.93,135.92,2.29433049]
[1765135974324,12.54826401,135.93,135.87,0.71]
[1765135974534,5.19150122,135.92,135.86,8.80994492]
[1765135974832,4.51150122,135.91,135.86,11.81427541]
[1765135975133,11.87008017,135.9,135.87,2.29433049]
[1765135975323,8.03857895,135.9,135.87,3.00433049]
[1765135976336,8.03857895,135.9,135.87,2.29433049]
[1765135976337,8.07857895,135.9,135.87,2.29433049]
[1765135976517,8.07857895,135.9,135.87,2.98433049]
[1765135976518,4.45920086,135.89,135.87,2.98433049]
[1765135976720,8.07857895,135.9,135.87,2.98433049]
[1765135976916,4.45957622,135.89,135.87,2.98433049]
[1765135977233,0.72,135.89,135.87,2.29433049]
[1765135978044,8.07857895,135.9,135.87,2.29433049]
[1765135978247,4.46144873,135.89,135.87,2.29433049]
[1765135978541,8.07857895,135.9,135.87,2.98433049]
[1765135979044,0.72,135.92,135.89,2.29433049]
[1765135979226,4.48985507,135.91,135.89,2.98433049]
[1765135979426,0.72,135.92,135.89,2.98433049]
[1765135979829,7.35672772,135.93,135.9,2.29433049]
[1765135980034,4.51113393,135.92,135.9,2.98433049]
[1765135980232,8.07672772,135.93,135.9,2.98433049]
[1765135980425,5.23153043,135.92,135.9,2.29433049]
[1765135980635,0.72,135.92,135.9,2.29433049]
[1765135980833,7.35672772,135.93,135.9,2.29433049]
[1765135981030,4.5174504,135.92,135.9,11.79427541]
[1765135981230,8.07672772,135.93,135.91,2.29433049]
[1765135981551,8.17513052,135.96,135.92,2.29433049]
[1765135981840,5.27908746,135.95,135.92,2.29433049]
[1765135982146,8.07584613,135.95,135.92,2.29433049]
[1765135982735,7.35584613,135.95,135.92,2.29433049]
[1765135982940,0.72,135.94,135.92,2.29433049]
[1765135983726,0.72,135.94,135.9,35.53313941]
[1765135984146,11.88181051,135.93,135.89,2.29433049]
[1765135984350,4.51595753,135.92,135.89,10.41433049]
[1765135984538,0.72,135.92,135.89,10.41433049]
[1765135984938,0.72,135.92,135.89,11.10433049]
[1765135986341,8.07765759,135.92,135.89,11.10433049]
[1765135986654,8.07765759,135.92,135.89,10.41433049]
[1765135989261,0.72,135.91,135.88,78.508864]
[1765135989461,0.72,135.91,135.88,16.308864]
[1765135990860,4.46477318,135.9,135.88,16.308864]
[1765135991059,0.72,135.91,135.88,16.308864]
[1765135991361,4.46393296,135.9,135.88,16.308864]
[1765135992266,8.07795386,135.91,135.88,16.308864]
[1765135992466,5.1840039,135.9,135.88,16.308864]
[1765135992766,5.18716577,135.91,135.88,16.998864]
[1765135992951,0.72,135.91,135.88,16.998864]
[1765135993976,0.72,135.91,135.88,16.308864]
[1765135994147,4.46377135,135.9,135.88,16.308864]
[1765135994347,0.72,135.91,135.88,16.308864]
[1765135994546,0.72,135.9,135.88,16.308864]
[1765135995144,26.47044143,135.92,135.88,16.998864]
[1765135995341,5.18717857,135.91,135.88,16.308864]
[1765135995544,4.46401343,135.9,135.88,16.308864]
[1765135995745,0.72,135.9,135.88,16.308864]
[1765135996356,8.07852756,135.9,135.88,16.308864]
[1765135996559,8.07852756,135.9,135.86,71.85464104]
[1765135996767,0.72,135.89,135.86,85.86917455]
[1765135996963,0.72,135.89,135.86,88.16350504]
[1765135997150,7.35852756,135.9,135.88,2.29433049]
[1765135997553,7.35852756,135.9,135.88,0.69]
[1765135999058,7.35852756,135.9,135.87,11.10433049]
[1765135999459,0.72,135.89,135.87,10.41433049]
[1765135999673,7.35852756,135.9,135.87,8.12]
[1765135999877,8.07852756,135.9,135.87,11.10433049]
[1765136001367,8.0376062,135.92,135.88,2.95433049]
[1765136001669,4.46883262,135.91,135.89,2.29433049]
[1765136001861,0.68,135.91,135.89,2.29433049]
[1765136002063,0.68,135.91,135.88,2.95433049]
[1765136002570,0.68,135.91,135.88,65.15433049]
[1765136003356,0.68,135.91,135.88,72.51367281]
[1765136003750,0.68,135.91,135.88,80.63367281]
[1765136005471,8.03786043,135.91,135.88,70.32]
[1765136005977,8.03786043,135.91,135.88,73.27433049]
[1765136006549,7.35747116,135.92,135.88,79.97370669]
[1765136006751,4.49103815,135.91,135.89,2.95433049]
[1765136007058,8.0369285,135.93,135.89,2.95433049]
[1765136007259,4.48962226,135.92,135.89,2.95433049]
[1765136007478,4.48962226,135.91,135.89,2.95433049]
[1765136007775,8.03728963,135.92,135.89,2.95433049]
[1765136007970,4.48956145,135.91,135.89,2.95433049]
[1765136008162,8.03728963,135.92,135.89,2.95433049]
[1765136008364,4.48946616,135.91,135.89,2.95433049]
[1765136008566,8.03728963,135.92,135.89,2.95433049]
[1765136008759,4.48942379,135.91,135.89,2.95433049]
[1765136008960,8.03728963,135.92,135.89,2.95433049]
[1765136009173,4.48939388,135.91,135.89,4.2435033]
[1765136009371,8.03728963,135.92,135.89,4.2435033]
[1765136009552,4.4894979,135.91,135.9,0.66]
[1765136010082,8.03728963,135.92,135.9,0.66]
[1765136010272,8.03728963,135.92,135.89,3.5835033]
[1765136010477,8.03728963,135.92,135.89,4.2435033]
[1765136010859,8.03728963,135.92,135.89,3.5835033]
[1765136011054,8.03728963,135.92,135.9,0.66]
[1765136011254,8.03728963,135.92,135.89,0.66]
[1765136012466,7.35672772,135.93,135.88,19.0628795]
[1765136012666,0.68,135.91,135.88,19.0628795]
[1765136012872,0.68,135.91,135.88,19.7228795]
[1765136013576,7.35672772,135.93,135.89,4.2435033]
[1765136013577,4.4994043,135.92,135.89,4.2435033]
[1765136013781,8.03672772,135.93,135.89,4.2435033]
[1765136013988,4.49960172,135.92,135.9,0.66]
[1765136014281,0.68,135.92,135.9,0.66]
[1765136014788,16.15629819,135.94,135.9,4.2435033]
[1765136014988,4.50803349,135.93,135.91,3.5835033]
[1765136015169,0.68,135.95,135.91,12.3435033]
[1765136015378,4.52033796,135.94,135.91,12.3435033]
[1765136015574,4.52033796,135.93,135.91,12.3435033]
[1765136015774,8.03587152,135.95,135.91,12.3435033]
[1765136015976,18.48843314,135.96,135.93,12.39344822]
[1765136015977,4.52062185,135.94,135.93,12.39344822]
[1765136016290,4.55128793,135.95,135.93,12.39344822]
[1765136016472,0.1,135.96,135.94,4.2435033]
[1765136017472,0.78,135.96,135.94,3.5835033]
[1765136018283,5.34921752,135.96,135.94,3.5835033]
[1765136019273,0.78,135.96,135.94,3.5835033]
[1765136022381,11.71868089,135.96,135.9,4.2435033]
[1765136022581,8.1182508,135.95,135.89,3.5835033]
[1765136022763,8.1182508,135.94,135.89,24.408864]
[1765136022970,8.7982508,135.94,135.89,24.408864]
[1765136023170,5.2147475,135.93,135.89,25.068864]
[1765136023583,8.03726898,135.92,135.89,24.408864]
[1765136024093,8.03726898,135.92,135.89,25.068864]
[1765136027098,8.03726898,135.92,135.89,28.6523673]
[1765136027986,4.49237644,135.93,135.92,8.80994492]
[1765136028171,4.52538419,135.95,135.92,12.39344822]
[1765136028368,4.52538419,135.95,135.93,4.2435033]
[1765136028574,0.78,135.96,135.93,4.2435033]
[1765136028786,8.13532112,135.96,135.93,4.2435033]
[1765136029091,11.71882442,135.96,135.89,16.308864]
[1765136029295,3.5835033,135.94,135.89,16.968864]
[1765136029484,4.50202228,135.93,135.89,16.968864]
[1765136029674,0.68,135.93,135.89,16.968864]
[1765136029881,0.68,135.92,135.89,20.5523673]
[1765136030275,8.03740019,135.92,135.89,20.5523673]
[1765136033518,8.03740019,135.92,135.89,16.968864]
[1765136035101,0.67,135.91,135.88,62.2]
[1765136036093,12.49434179,135.91,135.88,62.2]
[1765136036495,0.66,135.9,135.88,62.2]
[1765136036703,0.66,135.9,135.84,0.68]
[1765136036704,3.5835033,135.89,135.84,0.68]
[1765136036907,8.04951469,135.89,135.83,3.5835033]
[1765136037102,8.70951469,135.89,135.84,8.80994492]
[1765136037415,0.66,135.89,135.84,16.85118954]
[1765136037599,0.66,135.88,135.85,0.68]
[1765136038189,4.46601139,135.89,135.85,11.62416653]
[1765136038390,0.66,135.89,135.85,11.62416653]
[1765136038608,5.12601139,135.89,135.86,0.68]
[1765136038810,0.66,135.89,135.86,0.68]
[1765136039819,8.01894242,135.89,135.86,0.68]
[1765136041496,8.01894242,135.89,135.83,42.8334996]
[1765136041497,3.5835033,135.87,135.83,16.988864]
[1765136041691,3.5835033,135.87,135.82,8.80994492]
[1765136041893,0.66,135.86,135.82,9.48994492]
[1765136042199,0.66,135.86,135.82,71.68994492]
[1765136043208,0.66,135.86,135.83,0.68]
[1765136043596,7.36105999,135.85,135.81,16.308864]
[1765136043802,3.5835033,135.83,135.79,0.68]
[1765136044209,0.66,135.82,135.79,0.68]
[1765136044806,4.2435033,135.82,135.77,0.68]
[1765136045000,4.2435033,135.82,135.78,0.68]
[1765136045206,0.66,135.81,135.78,0.68]